bitfinex/quotes_ETHUSD_20250616
["timestamp","ask_amount","ask_price","bid_price","bid_amount"]
[1750105703886,0.7776,2658.7,2658.2,3.76186074]
[1750105704144,4.53891946,2658.7,2658.2,3.76186074]
[1750105704489,3.76138676,2658.6,2658.0,12.13317808]
[1750105704687,3.76138676,2658.6,2658.1,3.76198076]
[1750105704888,3.76138676,2658.6,2658.2,3.76193745]
[1750105705088,13.69553722,2658.7,2658.2,3.76193745]
[1750105705289,6.12582759,2658.7,2658.1,3.7620857]
[1750105705520,4.53885315,2658.7,2658.2,3.76194417]
[1750105705725,0.7776,2658.7,2658.3,3.76177951]
[1750105705921,0.7776,2658.7,2658.4,3.7615798]
[1750105706141,0.7776,2658.7,2658.3,3.76169868]
[1750105707748,0.7776,2658.7,2658.3,3.7617318]
[1750105708604,4.53884415,2658.7,2658.2,3.76188986]
[1750105708984,4.53884415,2658.7,2658.3,3.7617533]
[1750105709414,0.7776,2658.7,2658.3,3.7617533]
[1750105710186,4.53884415,2658.7,2658.3,3.7617533]
[1750105710502,0.7776,2658.7,2658.3,3.7617533]
[1750105711095,0.7776,2658.7,2658.4,3.76165288]
[1750105711350,0.8116,2658.9,2658.6,3.7612418]
[1750105711640,0.8116,2659.1,2658.9,3.76087106]
[1750105711838,0.8895437,2659.3,2659.0,3.7607221]
[1750105712041,0.8895437,2659.3,2659.1,3.76066336]
[1750105712197,0.8895437,2659.3,2659.0,3.76075473]
[1750105712392,0.8895437,2659.3,2658.7,12.1414371]
[1750105712589,0.8895437,2659.3,2659.0,3.76072965]
[1750105712794,0.8895437,2659.3,2658.8,3.7610383]
[1750105713132,0.8895437,2659.3,2658.9,7.45990647]
[1750105714198,0.8895437,2659.3,2658.9,7.45989304]
[1750105715202,0.8895437,2659.3,2659.0,3.76077433]
[1750105715826,0.8895437,2659.3,2658.9,7.45990212]
[1750105716434,0.0779437,2659.3,2659.0,3.76080934]
[1750105717249,0.0779437,2659.3,2659.1,3.76066907]
[1750105717455,0.0779437,2659.3,2659.2,3.76052948]
[1750105720511,0.0779437,2659.3,2659.2,3.79812679]
[1750105721021,0.0779437,2659.3,2659.2,4.59642679]
[1750105721222,0.0779437,2659.3,2659.2,20.76429522]
[1750105721546,0.0779437,2659.3,2659.2,21.09896561]
[1750105721744,0.0779437,2659.3,2659.2,19.60855439]
[1750105722138,0.0779437,2659.3,2659.2,23.30655439]
[1750105722544,0.0779437,2659.3,2659.2,24.79587346]
[1750105724234,0.0779437,2659.3,2659.2,30.87620146]
[1750105736063,0.0779437,2659.3,2659.2,27.17820146]
[1750105736263,0.0779437,2659.3,2659.2,30.87320146]
[1750105738280,0.0779437,2659.3,2659.2,19.60855439]
[1750105738443,0.0779437,2659.3,2659.2,24.10925439]
[1750105738869,0.0779437,2659.3,2659.2,24.86715439]
[1750105739084,0.0779437,2659.3,2659.2,26.35647346]
[1750105739495,0.0779437,2659.3,2659.2,25.41715439]
[1750105739708,0.0779437,2659.3,2659.2,27.66395704]
[1750105740000,0.0779437,2659.3,2659.2,25.41715439]
[1750105740294,0.0779437,2659.3,2659.2,27.65088611]
[1750105741491,0.0779437,2659.3,2659.2,25.41715439]
[1750105742600,0.0779437,2659.3,2659.2,24.86715439]
[1750105742755,0.0779437,2659.3,2659.2,27.10252058]
[1750105742956,0.0779437,2659.3,2659.2,27.10152058]
[1750105744792,0.0779437,2659.3,2659.2,22.43152058]
[1750105745554,0.0779437,2659.3,2659.2,20.19615439]
[1750105745756,0.0779437,2659.3,2659.2,24.86615439]
[1750105749515,0.0779437,2659.3,2659.2,27.86189126]
[1750105750609,0.0779437,2659.3,2659.2,22.56389126]
[1750105750771,0.0779437,2659.3,2659.2,28.74180146]
[1750105750975,0.0779437,2659.3,2659.2,32.43480146]
[1750105752265,0.0779437,2659.3,2659.2,28.74180146]
[1750105752580,0.0779437,2659.3,2659.2,24.10725439]
[1750105752777,0.0779437,2659.3,2659.2,20.41425439]
[1750105752977,0.0779437,2659.3,2659.2,24.10725439]
[1750105753395,0.0779437,2659.3,2659.2,33.92184428]
[1750105753626,0.0779437,2659.3,2659.2,31.67690146]
[1750105756806,0.0779437,2659.3,2659.2,24.10725439]
[1750105757010,0.0779437,2659.3,2659.2,31.67390146]
[1750105760446,0.0779437,2659.3,2659.2,32.49760146]
[1750105760999,0.0779437,2659.3,2659.2,35.49333833]
[1750105761747,0.0779437,2659.3,2659.2,36.04333833]
[1750105764126,0.0779437,2659.3,2659.2,33.04760146]
[1750105764805,0.02,2659.9,2659.8,14.53388117]
[1750105764993,0.02,2659.9,2659.8,27.39652824]
[1750105766215,0.02,2659.9,2659.8,26.62232824]
[1750105766739,0.02,2659.9,2659.8,28.86442179]
[1750105767097,0.02,2659.9,2659.8,34.74197531]
[1750105767301,0.02,2659.9,2659.8,38.56064705]
[1750105767502,0.02,2659.9,2659.8,35.57127531]
[1750105767714,0.02,2659.9,2659.8,38.56064705]
[1750105768002,0.02,2659.9,2659.8,35.57127531]
[1750105768975,0.7943,2660.9,2660.8,3.75826819]
[1750105769132,0.7943,2660.9,2660.8,9.05026819]
[1750105771357,0.7943,2660.9,2660.8,5.292]
[1750105771973,0.7943,2660.9,2660.8,9.04926819]
[1750105772170,0.7943,2660.9,2660.8,1.6]
[1750105772339,1.24952583,2660.9,2660.8,5.291]
[1750105772673,0.7943,2660.9,2660.8,9.04926819]
[1750105775165,0.7943,2660.9,2660.8,5.291]
[1750105775369,0.02,2660.9,2660.8,16.61891526]
[1750105775578,0.02,2660.9,2660.8,9.04926819]
[1750105789215,0.02,2660.9,2660.8,9.04726819]
[1750105789540,0.02,2660.9,2660.8,9.04526819]
[1750105789844,0.7794,2660.9,2660.8,9.04526819]
[1750105791251,0.7794,2660.9,2660.8,5.35626819]
[1750105791412,0.7794,2660.9,2660.8,9.04526819]
[1750105792845,0.7794,2660.9,2660.8,7.44726819]
[1750105796679,0.7794,2660.9,2660.8,3.75826819]
[1750105796850,0.7794,2660.9,2660.8,7.44726819]
[1750105801278,0.7794,2660.9,2660.7,1.598]
[1750105801477,0.7966,2660.8,2660.5,3.75869197]
[1750105801685,0.7966,2660.8,2660.6,7.44650839]
[1750105802080,0.7966,2660.8,2660.4,1.598]
[1750105802284,0.7727,2660.6,2660.4,1.598]
[1750105802483,0.7727,2660.4,2660.0,3.0902419]
[1750105802697,0.7727,2660.1,2659.9,3.75945226]
[1750105802887,10.0,2660.7,2659.5,1.4922419]
[1750105802888,0.7727,2659.9,2659.5,1.4922419]
[1750105803101,8.34234707,2659.7,2659.2,1.598]
[1750105803418,12.10220644,2659.7,2659.3,3.688]
[1750105803717,7.56964707,2659.5,2659.0,3.76079275]
[1750105803914,7.56964707,2659.3,2658.9,5.35888517]
[1750105804218,0.7928,2659.4,2659.1,3.688]
[1750105804386,0.7928,2659.4,2659.1,7.44866341]
[1750105804789,0.7928,2659.4,2659.2,3.76051254]
[1750105804989,0.7928,2659.4,2659.3,3.76038807]
[1750105806406,0.7928,2659.4,2659.1,7.44861855]
[1750105806407,0.7928,2659.4,2659.1,3.76060056]
[1750105806606,0.7928,2659.4,2659.3,3.689]
[1750105809934,0.7928,2659.4,2658.9,1.598]
[1750105810090,7.56964707,2659.1,2658.8,4.6117105]
[1750105810290,0.7684,2659.3,2658.7,3.689]
[1750105810291,7.56964707,2658.9,2658.7,3.689]
[1750105810726,0.7684,2659.0,2658.7,7.45023262]
[1750105811113,0.7684,2659.0,2658.7,3.689]
[1750105811529,4.52923711,2659.0,2658.6,3.689]
[1750105811734,6.1151879,2659.0,2658.6,3.689]
[1750105812244,2.35435079,2659.0,2658.6,7.45035617]
[1750105812488,6.11517186,2659.0,2658.6,3.689]
[1750105812744,2.35435079,2659.0,2658.6,7.4503756]
[1750105813445,8.37824707,2658.7,2658.3,5.36074205]
[1750105813767,8.37824707,2658.7,2658.3,9.04974205]
[1750105813946,8.37824707,2658.7,2658.4,3.76165517]
[1750105814112,0.8086,2658.7,2658.4,3.76165517]
[1750105816758,0.8086,2658.7,2658.5,3.76146824]
[1750105816963,0.8086,2658.7,2658.4,3.76158811]
[1750105819033,4.56987795,2658.7,2658.1,1.619]
[1750105819347,13.35346559,2658.7,2658.2,7.45186639]
[1750105819545,12.13954417,2658.7,2658.2,7.45186639]
[1750105819857,8.37824707,2658.7,2658.3,3.76177208]
[1750105820059,8.37824707,2658.7,2658.4,3.76165554]
[1750105820356,12.13948806,2658.7,2658.3,3.76173685]
[1750105820559,13.7295399,2658.7,2658.3,3.76173685]
[1750105821085,7.56964707,2658.5,2658.2,3.69]
[1750105821373,0.8274,2658.6,2658.2,7.45188219]
[1750105822324,0.8274,2658.6,2658.3,3.76179675]
[1750105822573,1.36559704,2658.6,2658.3,3.76179675]
[1750105822957,0.7636,2659.2,2658.4,7.60726561]
[1750105823126,0.7636,2659.2,2658.8,3.7609953]
[1750105823530,7.56964707,2659.1,2658.2,5.4374]
[1750105823793,4.57577986,2659.0,2658.5,3.76140819]
[1750105823928,7.56964707,2658.9,2658.6,3.76135908]
[1750105824124,8.78417471,2658.9,2658.3,9.04878197]
[1750105824329,8.78417471,2658.9,2658.6,3.76131858]
[1750105825232,0.8149,2659.0,2658.7,3.76115917]
[1750105827275,7.56964707,2658.9,2658.4,3.69]
[1750105827484,7.56964707,2658.9,2658.6,3.76135642]
[1750105828276,0.8149,2659.0,2658.8,3.76102915]
[1750105828474,0.8149,2659.0,2658.5,0.03761137]
[1750105828778,0.8149,2659.0,2658.8,3.76095434]
[1750105828978,4.3102269,2659.5,2658.8,3.76095434]
[1750105828979,0.8201,2659.5,2659.2,3.76046843]
[1750105829133,0.8201,2660.1,2659.4,8.39574707]
[1750105829334,0.8201,2660.1,2659.5,5.286]
[1750105829574,0.8201,2660.1,2659.9,3.75946146]
[1750105829754,0.8201,2660.1,2660.0,3.75939849]
[1750105830149,0.8201,2660.1,2659.5,5.286]
[1750105830372,8.40862178,2660.0,2659.6,3.689]
[1750105830673,8.40862178,2660.0,2659.6,7.44889444]
[1750105830839,0.83897471,2660.0,2659.7,3.75981761]
[1750105831164,0.83897471,2660.0,2659.8,3.75965053]
[1750105831545,0.83897471,2660.0,2659.6,3.689]
[1750105831756,10.8201,2660.1,2659.8,3.7595828]
[1750105831954,10.8201,2660.1,2659.9,3.75953726]
[1750105831955,10.0,2660.1,2659.9,3.75953726]
[1750105832154,10.0,2660.1,2659.6,7.4489173]
[1750105832360,10.0,2660.1,2660.0,3.75939849]
[1750105832868,0.7871,2660.2,2660.1,3.75925717]
[1750105833071,0.7871,2660.2,2659.9,3.75947427]
[1750105833236,7.56964707,2660.1,2659.9,3.689]
[1750105833434,11.32896797,2660.1,2659.1,3.76062964]
[1750105833629,7.56964707,2659.8,2659.5,3.75996502]
[1750105833838,7.56964707,2659.8,2659.5,7.44896502]
[1750105834039,0.7527,2659.8,2659.6,3.75995295]
[1750105834241,22.08167612,2660.1,2659.7,3.75982024]
[1750105834444,2.42932367,2660.0,2659.6,3.75990138]
[1750105836496,10.7527,2660.1,2659.5,3.689]
[1750105836647,10.7527,2660.1,2659.8,3.75965329]
[1750105837265,10.0,2660.1,2660.0,3.75939849]
[1750105837465,0.7861,2660.3,2660.0,3.75939849]
[1750105837697,0.7861,2660.3,2660.1,3.75924226]
[1750105837869,0.7861,2660.3,2660.0,3.7593501]
[1750105838070,0.7861,2660.3,2659.5,3.689]
[1750105838071,12.11474036,2660.3,2659.5,3.689]
[1750105838384,8.35574707,2660.3,2659.9,3.75950565]
[1750105838682,9.72220034,2660.3,2659.9,3.75950565]
[1750105840086,13.48124685,2660.3,2659.8,3.75961968]
[1750105840885,7.56964707,2660.1,2659.7,3.688]
[1750105841085,7.56964707,2660.1,2659.7,7.44779839]
[1750105841285,7.56964707,2660.1,2659.7,3.75979839]
[1750105841494,9.29368507,2660.1,2659.7,3.75979839]
[1750105842677,13.05294885,2660.1,2659.7,3.75979839]
[1750105842879,13.05294885,2660.1,2659.6,7.44787953]
[1750105843187,9.29368507,2660.1,2659.7,3.75981662]
[1750105845105,13.05294577,2660.1,2659.7,3.75981662]
[1750105845407,13.05294577,2660.1,2659.6,7.4478817]
[1750105845703,13.05294577,2660.1,2659.5,1.597]
[1750105845704,11.32925145,2659.9,2659.5,1.597]
[1750105845911,11.32925145,2659.9,2659.5,9.04508454]
[1750105845912,7.56964707,2659.9,2659.5,9.04508454]
[1750105846582,7.56964707,2659.9,2659.6,3.75995681]
[1750105846789,12.10219458,2660.0,2659.6,3.75995681]
[1750105846989,12.10219458,2660.0,2659.7,3.75982247]
[1750105847516,15.86160803,2660.0,2659.6,3.75988102]
[1750105847691,12.10219458,2660.0,2659.6,3.75988102]
[1750105847887,15.86160013,2660.0,2659.6,3.75988102]
[1750105848318,12.10219458,2660.0,2659.7,3.75976366]
[1750105849011,15.86162143,2660.0,2659.5,9.04504081]
[1750105849213,15.86162143,2660.0,2659.5,5.285]
[1750105849399,3.75956247,2659.9,2659.5,5.285]
[1750105849804,3.75970692,2659.8,2659.5,1.597]
[1750105850199,3.7596042,2659.9,2659.5,1.597]
[1750105850706,3.75969439,2659.8,2659.5,1.597]
[1750105851095,0.7603,2659.5,2659.2,7.44751051]
[1750105851417,0.7603,2659.5,2659.2,3.687]
[1750105851892,0.7603,2659.5,2659.1,7.44760375]
[1750105852093,12.09005548,2659.5,2659.0,6.363]
[1750105852414,3.76035314,2659.4,2659.0,10.05]
[1750105853119,12.09010839,2659.5,2659.0,13.81079055]
[1750105853420,0.7603,2659.5,2659.1,3.76062943]
[1750105853783,0.7603,2659.5,2659.1,3.7606709]
[1750105853989,10.28873572,2659.9,2659.3,3.76033035]
[1750105853990,10.7595,2659.7,2659.3,3.76033035]
[1750105854321,0.7595,2659.7,2659.4,3.7601647]
[1750105854816,0.7595,2659.7,2659.3,3.76033909]
[1750105855318,4.51937147,2659.7,2659.3,3.76033909]
[1750105855515,0.7595,2659.7,2659.3,3.76033909]
[1750105855716,0.7595,2659.7,2659.0,10.8477]
[1750105855917,0.7595,2659.7,2659.2,3.76044598]
[1750105855918,4.51934036,2659.7,2659.2,3.76044598]
[1750105856099,0.7595,2659.7,2659.3,3.76035348]
[1750105856515,0.7595,2659.7,2659.4,3.76023659]
[1750105857742,0.7595,2659.7,2659.3,3.76032595]
[1750105858144,4.51932378,2659.7,2659.3,3.76032595]
[1750105858748,4.51932378,2659.7,2659.1,3.76058209]
[1750105858749,0.8225,2660.2,2659.8,3.75958724]
[1750105859046,10.8225,2660.2,2659.7,3.75972486]
[1750105859406,10.8225,2660.2,2659.8,3.75965056]
[1750105860039,0.8225,2660.2,2659.9,3.75949696]
[1750105860611,0.8225,2660.2,2659.8,3.75958095]
[1750105861546,0.8225,2660.2,2659.9,3.75952418]
[1750105862047,0.21103373,2660.4,2660.3,3.75897455]
[1750105862205,0.78297,2660.8,2660.3,8.23737789]
[1750105862408,7.56964707,2660.7,2660.3,7.44596628]
[1750105862604,7.56964707,2660.5,2660.3,3.687]
[1750105862906,7.56964707,2660.7,2660.3,7.44595697]
[1750105863230,0.02,2660.9,2660.3,7.44595697]
[1750105863231,0.02,2660.9,2660.6,3.75848039]
[1750105863537,0.02,2660.9,2660.5,3.75859637]
[1750105863917,0.02,2660.9,2660.6,3.75854026]
[1750105864242,10.0,2660.8,2660.4,3.75876633]
[1750105864825,10.0,2660.8,2660.5,3.7586681]
[1750105865207,10.0,2660.8,2660.4,3.75875947]
[1750105865413,10.7788,2660.8,2660.4,3.75875947]
[1750105865860,11.32812382,2660.7,2660.3,3.687]
[1750105866045,7.56964707,2660.7,2660.3,7.44595726]
[1750105866346,11.32806186,2660.7,2660.3,3.687]
[1750105866542,0.02,2660.9,2660.4,0.7804]
[1750105866744,0.02,2660.9,2660.7,3.75834677]
[1750105866944,0.02,2660.9,2660.4,4.53918501]
[1750105867149,7.58964707,2660.9,2660.6,3.75850852]
[1750105867344,0.02,2660.9,2660.5,7.44758365]
[1750105867751,0.02,2660.9,2660.7,3.75839869]
[1750105868125,7.58964707,2660.9,2660.5,3.689]
[1750105868432,7.56964707,2660.7,2660.3,3.75889831]
[1750105869525,0.7667,2660.4,2660.1,1.595]
[1750105869740,7.56964707,2660.3,2660.1,1.595]
[1750105870341,7.56964707,2660.3,2659.9,3.75946348]
[1750105870541,11.32862375,2660.3,2659.9,3.688]
[1750105871140,7.56964707,2660.3,2659.8,1.595]
[1750105871444,0.8174,2660.0,2659.8,1.595]
[1750105871638,0.8174,2660.0,2659.8,5.35464483]
[1750105871847,0.55,2660.3,2660.0,3.75937762]
[1750105872419,22.14590036,2660.4,2659.9,3.75947564]
[1750105872624,6.34946131,2660.3,2659.9,3.75953862]
[1750105873256,2.59046272,2660.3,2659.9,3.75953862]
[1750105873459,6.34946108,2660.3,2659.9,3.75953862]
[1750105874756,2.59046272,2660.3,2659.9,3.75953862]
[1750105874958,2.59046272,2660.3,2659.8,5.35465505]
[1750105875255,6.34947104,2660.3,2659.9,3.75947313]
[1750105875653,2.59046272,2660.3,2659.9,3.75947313]
[1750105875858,1.7166871,2660.2,2659.9,3.75951671]
[1750105876060,14.57631577,2660.4,2659.9,3.75951671]
[1750105877146,0.8174,2660.4,2660.2,3.75902266]
[1750105878633,0.8224,2660.2,2659.6,5.3548747]
[1750105878833,10.55,2660.3,2659.1,0.7701]
[1750105878834,0.8224,2659.8,2659.1,0.7701]
[1750105879040,3.75982329,2659.7,2659.0,3.76081233]
[1750105879328,3.75982329,2659.7,2659.2,3.76052797]
[1750105880564,10.8224,2659.8,2659.0,7.46981233]
[1750105880565,3.76002732,2659.6,2659.1,3.76061605]
[1750105880765,0.7563,2659.5,2659.1,3.76066475]
[1750105880940,10.72186133,2659.3,2658.5,2.2815419]
[1750105881151,0.7563,2659.2,2658.8,3.76109521]
[1750105881860,0.7563,2659.2,2658.9,3.7609505]
[1750105883565,0.7563,2659.2,2659.0,3.76080683]
[1750105883966,0.66784738,2659.4,2659.2,3.76052689]
[1750105883967,0.7563,2659.4,2659.2,3.76052689]
[1750105884169,0.7563,2659.4,2659.1,3.76060671]
[1750105885067,0.7563,2659.4,2658.9,3.76086895]
[1750105885068,0.7563,2659.4,2659.0,3.76075898]
[1750105885768,0.7563,2659.4,2658.9,3.76091348]
[1750105885969,12.20793116,2659.4,2658.7,3.711]
[1750105886151,15.968249,2659.4,2658.9,3.76093613]
[1750105886469,15.968249,2659.4,2658.7,7.47213705]
[1750105886470,0.7928,2659.6,2659.2,3.7604314]
[1750105886672,4.55277191,2659.6,2659.2,3.7604314]
[1750105886894,0.7928,2659.6,2659.2,3.7604314]
[1750105887071,0.7928,2659.6,2659.4,3.76011452]
[1750105887389,0.7928,2659.6,2659.3,3.76031519]
[1750105888054,0.7928,2659.6,2659.4,3.76019428]
[1750105888643,0.7928,2659.6,2659.3,3.76031271]
[1750105889997,14.30959046,2659.9,2659.3,3.76031271]
[1750105890155,10.8087,2659.7,2659.3,3.76031271]
[1750105891555,10.8087,2659.7,2659.4,3.76022293]
[1750105891556,0.8087,2659.7,2659.4,3.76022293]
[1750105892276,0.8087,2659.7,2659.2,3.76048581]
[1750105892277,10.72186133,2659.7,2659.1,1.617]
[1750105892481,3.76019631,2659.5,2659.1,1.617]
[1750105894010,6.62244826,2659.6,2659.1,5.37760527]
[1750105894413,6.62244826,2659.6,2659.2,3.76052787]
[1750105894576,0.7902,2659.6,2659.2,3.76052787]
[1750105894977,0.7902,2659.6,2659.3,3.76030077]
[1750105895206,0.7902,2659.6,2659.2,3.76045901]
[1750105896117,0.7902,2659.6,2659.1,5.37763354]
[1750105896411,0.7902,2659.6,2659.2,3.76043419]
[1750105896972,0.7902,2659.6,2659.3,3.76037774]
[1750105898180,4.55019645,2659.6,2659.1,5.37760516]
[1750105898713,6.38124434,2659.6,2659.1,5.37760516]
[1750105899701,6.38124434,2659.6,2659.2,3.7605013]
[1750105899898,2.6212076,2659.6,2659.1,5.37759668]
[1750105900285,0.7902,2659.6,2659.1,1.617]
[1750105900487,0.7902,2659.6,2659.2,3.76045761]
[1750105900691,4.5501826,2659.6,2659.2,3.76045761]
[1750105900982,0.7902,2659.6,2659.2,3.76045761]
[1750105903125,0.7902,2659.6,2659.4,3.76023353]
[1750105903786,0.7902,2659.6,2659.3,3.76032234]
[1750105903994,0.7902,2659.6,2659.4,3.76021471]
[1750105904627,7.5641412,2659.5,2659.1,5.37760753]
[1750105905127,7.5641412,2659.5,2659.2,3.76051504]
[1750105905329,2.24518829,2659.6,2659.2,3.76051504]
[1750105906330,2.24518829,2659.6,2659.3,3.7603636]
[1750105906915,2.24518829,2659.6,2659.2,3.76047471]
[1750105907121,0.7902,2659.6,2659.4,3.76017957]
[1750105908003,1.0016231,2659.6,2659.4,3.76017957]
[1750105908201,0.7902,2659.6,2659.4,3.76017957]
[1750105908610,1.00162293,2659.6,2659.4,3.76017957]
[1750105908812,0.7902,2659.6,2659.4,3.76017957]
[1750105909218,0.7902,2659.6,2659.2,3.76049094]
[1750105909738,0.7902,2659.6,2659.3,3.76038807]
[1750105910557,0.7902,2659.6,2659.4,3.76023103]
[1750105911106,0.7902,2659.6,2659.5,3.76010528]
[1750105911307,0.21143217,2659.6,2659.5,3.76010528]
[1750105911616,7.5641412,2659.7,2659.5,3.76010528]
[1750105911820,0.21147719,2659.6,2659.5,3.76010528]
[1750105912217,0.2114755,2659.6,2659.5,3.76010528]
[1750105912423,0.211475,2659.6,2659.5,3.76010528]
[1750105913036,0.21148313,2659.6,2659.5,3.76010528]
[1750105913557,0.21148127,2659.6,2659.4,3.76022593]
[1750105913761,0.2114813,2659.6,2659.4,3.76022593]
[1750105913960,7.5641412,2659.7,2659.4,3.76022593]
[1750105914124,0.21148174,2659.6,2659.4,3.76022593]
[1750105914318,0.21148105,2659.6,2659.4,3.76022593]
[1750105914518,0.21148105,2659.7,2659.4,3.76022593]
[1750105914762,0.21149832,2659.6,2659.4,3.76022593]
[1750105914931,0.21149832,2659.7,2659.1,1.617]
[1750105915129,10.762,2659.8,2659.6,3.7599639]
[1750105915464,10.0,2659.9,2659.8,3.75968117]
[1750105915756,10.762,2660.0,2659.8,3.75968117]
[1750105916320,0.8289,2660.3,2660.0,3.75926525]
[1750105916548,0.8289,2660.3,2660.1,3.75921066]
[1750105916937,0.8289,2660.3,2660.0,3.75932058]
[1750105917214,7.5641412,2660.2,2659.4,6.1622419]
[1750105917446,7.5641412,2659.8,2659.6,3.75989617]
[1750105917633,7.5641412,2659.8,2659.5,3.76003291]
[1750105918047,8.9430412,2660.1,2659.4,3.705]
[1750105918231,8.9430412,2660.1,2659.7,3.75970837]
[1750105918561,10.80528351,2660.1,2659.7,3.75970837]
[1750105918946,0.8289,2660.1,2659.9,3.75939987]
[1750105919757,10.0,2660.2,2660.1,3.75925717]
[1750105919917,10.0,2660.2,2659.9,3.75947177]
[1750105920434,0.7557,2660.3,2660.0,3.75939849]
[1750105920621,0.7557,2660.3,2660.1,3.75919239]
[1750105920824,0.7557,2660.3,2660.0,3.75933513]
[1750105922055,0.7557,2660.3,2659.6,0.805]
[1750105922056,10.0,2660.2,2659.6,0.805]
[1750105922265,10.0,2660.2,2659.4,0.8068]
[1750105922474,15.29279926,2660.0,2659.5,7.46303266]
[1750105922958,0.8112,2660.0,2659.6,3.75989898]
[1750105923163,13.14168735,2660.0,2659.5,3.703]
[1750105923470,3.75961243,2659.9,2659.5,7.46309802]
[1750105924356,3.75961243,2659.9,2659.5,3.703]
[1750105925019,10.0,2659.8,2659.4,1.613]
[1750105925220,10.8112,2659.8,2659.4,1.613]
[1750105925527,0.55,2660.1,2659.6,3.75983792]
[1750105925528,3.703,2660.1,2659.6,3.75983792]
[1750105925756,0.8176,2660.2,2659.8,3.75960813]
[1750105925931,0.8176,2660.2,2659.9,3.75952266]
[1750105926129,0.8176,2660.2,2660.0,3.7593974]
[1750105926320,10.8176,2660.4,2660.0,3.75932377]
[1750105926524,12.844867,2660.4,2660.0,3.75932377]
[1750105927446,12.844867,2660.4,2659.5,0.8162]
[1750105927447,16.60378321,2660.4,2659.9,3.75945737]
[1750105927637,3.75897696,2660.3,2659.9,3.75945737]
[1750105927820,4.57674819,2660.2,2659.8,3.75962166]
[1750105928028,0.8176,2660.2,2659.8,3.75962166]
[1750105928223,0.8176,2660.2,2659.7,3.75976936]
[1750105928423,0.8176,2660.2,2659.9,3.75946595]
[1750105929151,0.8176,2660.2,2660.0,3.75937887]
[1750105929357,0.8176,2660.2,2659.9,3.7594336]
[1750105931832,0.8176,2660.2,2659.6,54.1639298]
[1750105932164,0.8176,2660.2,2660.0,3.75931475]
[1750105932667,10.7701,2660.4,2660.0,3.75931475]
[1750105933472,0.7701,2660.4,2660.1,3.75918536]
[1750105933626,0.7701,2660.4,2660.3,3.75897455]
[1750105933964,6.34256185,2661.2,2660.6,3.75843805]
[1750105933965,0.8395,2660.9,2660.6,3.75843805]
[1750105934954,0.8395,2660.9,2660.5,3.7586222]
[1750105935670,5.80346515,2660.9,2660.4,3.75875332]
[1750105936467,5.80346515,2660.9,2660.5,3.75868739]
[1750105936865,2.04533454,2660.9,2660.6,3.75853798]
[1750105937062,2.04533454,2660.9,2660.5,3.75861231]
[1750105937227,5.80347126,2660.9,2660.5,3.75861231]
[1750105937633,2.04533454,2660.9,2660.5,3.75861231]
[1750105937833,2.04533454,2660.9,2660.6,3.7584875]
[1750105938238,0.02,2660.9,2660.3,3.75897455]
[1750105938543,0.02,2660.9,2660.6,3.75847796]
[1750105939566,0.02,2660.9,2660.4,4.51268258]
[1750105939567,0.02,2660.9,2660.5,3.75861697]
[1750105940065,0.02,2660.9,2660.6,3.75853623]
[1750105941237,0.02,2660.9,2660.7,3.75839479]
[1750105941582,0.02,2660.9,2660.6,3.7584778]
[1750105941769,0.02,2660.9,2660.5,3.75866137]
[1750105941770,0.02,2660.9,2660.5,3.75864421]
[1750105943479,0.02,2660.9,2660.6,3.75854207]
[1750105945043,0.02,2660.9,2660.5,3.75862433]
[1750105945982,10.02,2660.9,2660.4,0.7539]
[1750105946169,0.02,2660.9,2660.7,3.75828622]
[1750105946356,0.02,2660.9,2660.8,3.75826819]
[1750105946681,0.02,2660.9,2660.8,4.58016819]
[1750105948449,0.02,2660.9,2660.8,4.61774739]
[1750105949349,0.02,2660.9,2660.8,4.58016819]
[1750105953001,0.02,2660.9,2660.8,3.75826819]
[1750105954783,0.02,2660.9,2660.8,7.44826819]
[1750105956596,0.02,2660.9,2660.8,3.69]
[1750105956783,0.02,2660.9,2660.8,7.44826819]
[1750105958776,0.02,2660.9,2660.8,7.48584697]
[1750105959010,0.02,2660.9,2660.8,7.44826819]
[1750105960175,0.02,2660.9,2660.5,8.42862338]
[1750105960374,0.02,2660.9,2660.6,3.689]
[1750105960613,0.02,2660.9,2660.6,7.44748927]
[1750105960804,0.02,2660.9,2660.7,3.75840419]
[1750105961526,0.02,2660.9,2660.6,7.44746666]
[1750105961887,0.02,2660.9,2660.7,3.75830887]
[1750105962102,0.02,2660.9,2660.8,3.75826819]
[1750105962495,0.02,2660.9,2660.5,3.75856168]
[1750105962690,0.02,2660.9,2660.7,3.689]
[1750105963018,0.02,2660.9,2660.7,7.44740028]
[1750105963390,0.7647,2660.8,2660.4,1.605]
[1750105963592,8.39035075,2660.7,2660.0,3.0972419]
[1750105963818,8.39035075,2660.7,2660.2,3.75911563]
[1750105963819,7.55625523,2660.5,2660.2,3.75911563]
[1750105964135,12.14883156,2660.7,2660.2,3.75911563]
[1750105964613,3.75856619,2660.6,2660.1,7.44821016]
[1750105964818,0.7647,2660.4,2660.0,5.3643014]
[1750105965315,0.7647,2660.4,2660.1,3.689]
[1750105965521,0.7647,2660.4,2660.1,7.44824553]
[1750105967125,0.7647,2660.4,2660.1,3.75924553]
[1750105967455,0.7647,2660.4,2660.0,1.605]
[1750105967654,11.31553381,2660.1,2659.6,52.06588961]
[1750105967794,11.31558167,2660.1,2659.8,3.689]
[1750105968102,3.75945458,2660.0,2659.6,48.306]
[1750105968302,4.54837232,2660.0,2659.6,51.995]
[1750105968505,0.7889,2660.0,2659.6,55.75493218]
[1750105968919,0.7889,2660.0,2659.6,51.995]
[1750105969158,10.0,2660.3,2659.9,3.75946211]
[1750105969297,3.75877567,2660.5,2660.0,7.4483035]
[1750105969628,14.54753013,2660.6,2660.1,3.7592557]
[1750105969830,16.37813266,2660.6,2660.1,3.7592557]
[1750105970402,10.0,2660.4,2660.1,3.7592557]
[1750105970928,13.75883815,2660.4,2660.0,7.44834723]
[1750105971226,13.75883815,2660.4,2660.0,3.689]
[1750105971227,3.75883815,2660.4,2660.0,3.689]
[1750105972429,3.75883815,2660.4,2660.0,3.692]
[1750105972810,13.75879668,2660.5,2660.0,7.45136219]
[1750105973003,5.77252106,2660.4,2660.0,7.45136219]
[1750105973926,2.01368663,2660.4,2660.1,3.75924083]
[1750105974155,10.0,2660.5,2660.1,3.75924083]